bitfinex/quotes_BTCUSD_20241208
["timestamp","ask_amount","ask_price","bid_price","bid_amount"]
[1733680125255,0.61795278,100040.0,100030.0,0.0017294]
[1733680125469,0.62295278,100040.0,100030.0,0.0017294]
[1733680125734,0.306382,100010.0,100000.0,0.0009805]
[1733680125940,0.40641151,100010.0,100000.0,0.0009805]
[1733680126183,0.41208879,100010.0,99990.0,0.00173]
[1733680126401,0.180016,99991.0,99990.0,0.00173]
[1733680126858,0.00567743,99991.0,99990.0,0.00173]
[1733680127087,0.180013,99993.0,99990.0,0.00190196]
[1733680127337,0.00567743,99991.0,99990.0,0.00190196]
[1733680127627,0.001,99991.0,99990.0,0.00590196]
[1733680127853,0.00667743,99991.0,99990.0,0.00590196]
[1733680128111,0.00667743,99991.0,99990.0,0.08100196]
[1733680128112,0.001,99991.0,99990.0,0.08100196]
[1733680128385,0.001,99991.0,99990.0,0.12930196]
[1733680128908,0.002,99991.0,99990.0,0.12930196]
[1733680130702,0.002,99991.0,99990.0,0.30931996]
[1733680138296,0.179982,100010.0,99999.0,0.18]
[1733680138756,0.00565698,100000.0,99999.0,0.18]
[1733680139209,0.179982,100010.0,99999.0,0.18]
[1733680139655,0.00565698,100000.0,99999.0,0.18]
[1733680140099,0.179982,100010.0,99999.0,0.18]
[1733680140360,0.50620066,100020.0,99999.0,0.18]
[1733680140590,0.00565698,100000.0,99999.0,0.181]
[1733680140818,0.78620817,100020.0,99999.0,0.181]
[1733680141258,0.00565698,100010.0,99999.0,0.181]
[1733680141461,0.18563998,100010.0,99999.0,0.18]
[1733680142508,0.00565698,100010.0,99999.0,0.18]
[1733680143380,0.00565698,100010.0,99999.0,0.181]
[1733680147987,0.18563898,100010.0,99999.0,0.181]
[1733680150026,0.18563898,100010.0,99999.0,0.18086545]
[1733680150283,0.18563898,100010.0,99999.0,0.001]
[1733680150562,0.36562998,100010.0,99999.0,0.001]
[1733680151530,0.36562998,100010.0,99999.0,0.181001]
[1733680152348,0.36562998,100010.0,99999.0,0.001]
[1733680152550,0.36562998,100010.0,99999.0,0.181001]
[1733680153188,0.36562998,100010.0,99999.0,0.001]
[1733680153405,0.18563898,100010.0,99999.0,0.001]
[1733680154120,0.36562898,100010.0,99999.0,0.001]
[1733680154575,0.36563298,100010.0,99999.0,0.001]
[1733680158308,0.46566249,100010.0,99999.0,0.001]
[1733680158526,0.3067,100000.0,99999.0,0.001]
[1733680158747,0.31235614,100000.0,99999.0,0.001]
[1733680159186,0.41238565,100000.0,99999.0,0.001]
[1733680159397,0.41238565,100000.0,99990.0,0.00190196]
[1733680159620,0.180016,99991.0,99990.0,0.00190196]
[1733680160056,0.18567205,99991.0,99990.0,0.00190196]
[1733680160529,0.28570156,99991.0,99990.0,0.00190196]
[1733680160762,0.36500156,99991.0,99990.0,0.00190196]
[1733680161015,0.41240156,99991.0,99990.0,0.00190196]
[1733680161937,0.41240156,99991.0,99990.0,0.00290196]
[1733680162409,0.41240156,99991.0,99990.0,0.00190196]
[1733680162915,0.42140156,99991.0,99990.0,0.00190196]
[1733680163631,0.41940156,99991.0,99990.0,0.00190196]
[1733680163852,0.42140156,99991.0,99990.0,0.00190196]
[1733680164049,0.41440156,99991.0,99990.0,0.00190196]
[1733680164303,0.42140156,99991.0,99990.0,0.00190196]
[1733680168439,0.11468556,99991.0,99990.0,0.00190196]
[1733680168673,0.01465605,99991.0,99990.0,0.00190196]
[1733680169453,0.01265605,99991.0,99990.0,0.00190196]
[1733680169697,0.01465605,99991.0,99990.0,0.00190196]
[1733680170194,0.01265605,99991.0,99990.0,0.00190196]
[1733680170441,0.00665605,99991.0,99990.0,0.00190196]
[1733680170680,0.00665605,99991.0,99990.0,0.00290196]
[1733680170945,0.01165605,99991.0,99990.0,0.00290196]
[1733680171187,0.00665605,99991.0,99990.0,0.00190196]
[1733680171423,0.00865605,99991.0,99990.0,0.00190196]
[1733680171640,0.00765605,99991.0,99990.0,0.00190196]
[1733680173370,0.00765605,99991.0,99990.0,0.00290196]
[1733680173644,0.00565605,99991.0,99990.0,0.00290196]
[1733680173874,0.26095914,100010.0,99990.0,0.00290196]
[1733680174114,0.44338865,100010.0,99990.0,0.18291896]
[1733680174358,0.00557544,100000.0,99990.0,0.26041896]
[1733680174830,0.80337665,100010.0,99990.0,0.26041896]
[1733680175303,0.00559647,100000.0,99990.0,0.25941896]
[1733680175555,0.00559647,100000.0,99990.0,0.26041896]
[1733680175793,0.81137665,100010.0,99990.0,0.26141896]
[1733680176214,0.00559647,100000.0,99990.0,0.26041896]
[1733680176706,0.81437665,100010.0,99990.0,0.26041896]
[1733680176960,0.18,100000.0,99990.0,0.26041896]
[1733680177174,0.18559637,100000.0,99990.0,0.25941896]
[1733680177428,0.18959637,100000.0,99990.0,0.07940196]
[1733680177662,0.18559637,100000.0,99990.0,0.07940196]
[1733680178156,0.18559637,100000.0,99990.0,0.08040196]
[1733680178374,0.18559637,100000.0,99990.0,0.07940196]
[1733680178596,0.18959637,100000.0,99990.0,0.07940196]
[1733680179099,0.18859637,100000.0,99990.0,0.07940196]
[1733680179337,0.19059637,100000.0,99990.0,0.07940196]
[1733680179786,0.01059637,100000.0,99999.0,0.05]
[1733680180046,0.01059637,100000.0,99999.0,0.27452929]
[1733680180290,0.005,100000.0,99999.0,0.27352951]
[1733680180518,0.0017318,100010.0,100000.0,0.23]
[1733680180796,0.0017318,100010.0,100000.0,0.48129163]
[1733680180989,0.00642053,100010.0,100000.0,0.48129163]
[1733680181300,0.00642053,100010.0,100000.0,0.52270939]
[1733680181549,0.00642053,100010.0,100000.0,1.25737452]
[1733680181770,0.00642053,100010.0,100000.0,1.25720112]
[1733680182243,0.00642053,100010.0,100000.0,1.39159876]
[1733680182496,0.00642053,100010.0,100000.0,1.39559876]
[1733680182731,0.00642053,100010.0,100000.0,1.39560007]
[1733680183218,0.00642053,100010.0,100000.0,1.39760007]
[1733680183426,0.00642053,100010.0,100000.0,1.39700244]
[1733680183688,0.00642053,100010.0,100000.0,1.40696533]
[1733680184398,0.00642053,100010.0,100000.0,1.49651533]
[1733680186306,0.00468873,100010.0,100000.0,1.48376558]
[1733680186503,0.001732,100020.0,100010.0,0.262882]
[1733680188271,0.001732,100020.0,100010.0,0.263882]
[1733680188500,0.001732,100020.0,100010.0,0.37906188]
[1733680188945,0.001732,100020.0,100010.0,0.37806188]
[1733680189189,0.003732,100020.0,100010.0,0.38506188]
[1733680191306,0.003732,100020.0,100010.0,0.269882]
[1733680192445,0.003732,100020.0,100010.0,0.58229139]
[1733680192686,0.003732,100020.0,100010.0,0.92047127]
[1733680192901,0.003732,100020.0,100010.0,1.43126436]
[1733680193123,0.003732,100020.0,100010.0,1.69117775]
[1733680194221,0.0017312,100040.0,100020.0,0.2]
[1733680194442,0.0017312,100040.0,100030.0,0.29612539]
[1733680194660,0.0017312,100040.0,100030.0,0.29512588]
[1733680195336,0.00179425,100040.0,100030.0,0.29512588]
[1733680195566,0.00279425,100040.0,100030.0,0.179946]
[1733680195786,0.00179425,100040.0,100030.0,0.18094551]
[1733680196017,0.00279425,100040.0,100030.0,0.18094551]
[1733680197141,0.00279425,100040.0,100030.0,0.18194551]
[1733680197367,0.00279425,100040.0,100030.0,0.180946]
[1733680198017,0.00279425,100040.0,100030.0,0.179946]
[1733680198229,0.00179425,100040.0,100030.0,0.179946]
[1733680198438,0.00179425,100040.0,100030.0,0.180946]
[1733680198847,0.00179425,100040.0,100030.0,0.001]
[1733680199072,0.18172225,100040.0,100030.0,0.001]
[1733680200354,0.33155176,100040.0,100030.0,0.001]
[1733680206010,0.33155176,100040.0,100030.0,0.00725137]
[1733680208717,0.33155176,100040.0,100030.0,0.00725126]
[1733680215514,0.33155176,100040.0,100030.0,0.0072513]
[1733680215724,0.41375176,100040.0,100030.0,0.0072513]
[1733680215944,0.46375176,100040.0,100030.0,0.0072513]
[1733680216182,0.51375176,100040.0,100030.0,0.0072513]
[1733680216631,0.64196513,100040.0,100030.0,0.0062513]
[1733680216936,0.74178047,100040.0,100030.0,0.0062513]
[1733680217660,0.74378047,100040.0,100030.0,0.0062513]
[1733680218118,0.74178047,100040.0,100030.0,0.0062513]
[1733680218610,0.75078047,100040.0,100030.0,0.0072513]
[1733680218858,0.64196513,100040.0,100030.0,0.0062513]
[1733680219104,0.65096513,100040.0,100030.0,0.0072513]
[1733680219336,0.65496513,100040.0,100030.0,0.0072513]
[1733680220642,0.84437573,100040.0,100030.0,0.0072513]
[1733680221096,0.75478047,100040.0,100030.0,0.0072513]
[1733680221313,0.84437573,100040.0,100030.0,0.0072513]
[1733680221525,0.84437573,100040.0,100030.0,0.001]
[1733680222025,0.74456039,100040.0,100030.0,0.00725281]
[1733680222240,0.74456039,100040.0,100030.0,0.00725284]
[1733680222467,0.74456039,100040.0,100030.0,0.001]
[1733680222917,0.87895328,100040.0,100030.0,0.001]
[1733680223134,0.74456039,100040.0,100030.0,0.001]
[1733680223386,0.87895328,100040.0,100030.0,0.001]
[1733680223594,0.96350649,100040.0,100030.0,0.001]
[1733680225266,1.14269701,100040.0,100030.0,0.001]
[1733680226821,1.36668516,100040.0,100030.0,0.001]
[1733680227037,1.14269701,100040.0,100030.0,0.001]
[1733680227487,1.36668516,100040.0,100030.0,0.001]
[1733680227703,1.14269701,100040.0,100030.0,0.001]
[1733680228150,1.36668516,100040.0,100030.0,0.001]
[1733680228633,1.14269701,100040.0,100030.0,0.001]
[1733680230116,1.0581438,100040.0,100030.0,0.001]
[1733680233775,1.28213195,100040.0,100030.0,0.001]
[1733680234483,1.0581438,100040.0,100030.0,0.001]
[1733680235198,1.0301438,100040.0,100030.0,0.001]
[1733680235894,1.0301438,100040.0,100020.0,0.0008657]
[1733680235895,0.05,100030.0,100020.0,0.0008657]
[1733680236116,0.32997551,100030.0,100020.0,0.00711886]
[1733680237276,0.33697551,100030.0,100020.0,0.00811886]
[1733680238157,0.33897551,100030.0,100020.0,0.00811886]
[1733680239549,0.41637551,100030.0,100020.0,0.00811886]
[1733680240437,0.43668862,100030.0,100020.0,0.00811886]
[1733680241373,0.44643646,100030.0,100020.0,0.00811886]
[1733680242227,0.53601215,100030.0,100020.0,0.00811886]
[1733680242442,0.179982,100010.0,100000.0,0.03970716]
[1733680243061,0.28001151,100010.0,100000.0,0.03970716]
[1733680243286,0.28001151,100010.0,99994.0,0.0009872]
[1733680243496,0.180009,99995.0,99994.0,0.0009872]
[1733680243721,0.180009,99995.0,99990.0,0.04743]
[1733680243722,0.180016,99991.0,99990.0,0.04743]
[1733680243940,0.180016,99991.0,99990.0,0.00173]
[1733680244588,0.28004551,99991.0,99990.0,0.00173]
[1733680244794,0.28004551,99991.0,99990.0,0.00179305]
[1733680245221,0.28104551,99991.0,99990.0,0.00679305]
[1733680245439,0.28104551,99991.0,99990.0,0.08379305]
[1733680247250,0.28204551,99991.0,99990.0,0.08479305]
[1733680247552,0.182016,99991.0,99990.0,0.08479305]
[1733680247770,0.002,99991.0,99990.0,0.08479305]
[1733680254231,0.002,99991.0,99990.0,0.09104649]
[1733680257728,0.002,99991.0,99990.0,0.10105201]
[1733680259476,0.002,99991.0,99990.0,0.02405201]
[1733680260660,0.10202951,99991.0,99990.0,0.02405201]
[1733680263960,0.002,99991.0,99990.0,0.02405201]
[1733680264503,0.002,99991.0,99990.0,0.20407001]
[1733680267652,0.002,99991.0,99990.0,0.19781657]
[1733680267871,0.002,99991.0,99990.0,0.2040701]
[1733680269536,0.0017318,100000.0,99990.0,0.0699521]
[1733680269826,0.0017318,100000.0,99999.0,0.180001]
[1733680270084,0.0017318,100000.0,99999.0,0.2860069]
[1733680270551,0.0017318,100000.0,99999.0,0.19626005]
[1733680271260,0.0017318,100000.0,99999.0,0.36119284]
[1733680271713,0.0027318,100000.0,99999.0,0.10599184]
[1733680272001,0.0027318,100000.0,99999.0,0.01625905]
[1733680272241,0.0017318,100000.0,99999.0,0.01625905]
[1733680272479,0.0027318,100000.0,99999.0,0.01925905]
[1733680272717,0.0027318,100000.0,99999.0,0.02325905]
[1733680273247,0.0027318,100000.0,99999.0,0.01925905]
[1733680273474,0.0017318,100000.0,99999.0,0.01925905]
[1733680274149,0.0017318,100000.0,99999.0,0.01625905]
[1733680274388,0.0017318,100000.0,99999.0,0.01925905]
[1733680274634,0.0017318,100000.0,99999.0,0.02225905]
[1733680274859,0.0017318,100000.0,99999.0,0.003]
[1733680274860,0.02218927,100000.0,99999.0,0.003]
[1733680275093,0.0017318,100000.0,99999.0,0.01925744]
[1733680275322,0.0017318,100000.0,99999.0,0.02225744]
[1733680276298,0.1787138,100010.0,99999.0,0.02225744]
[1733680276509,0.27874331,100010.0,100000.0,0.01625744]
[1733680278459,0.27974331,100010.0,100000.0,0.01625744]
[1733680279157,0.27974331,100010.0,100000.0,0.01725744]
[1733680279837,0.27974331,100010.0,100000.0,0.001]
[1733680280056,0.27974331,100010.0,100000.0,0.01725799]
[1733680280571,0.27974331,100010.0,100000.0,0.19725799]
[1733680284469,0.27974331,100010.0,100000.0,0.01725799]
[1733680284724,0.27974331,100010.0,100000.0,0.001]
[1733680284725,0.35534331,100010.0,100000.0,0.001]
[1733680284990,0.35534331,100010.0,100000.0,0.01725798]
[1733680286423,0.35534331,100010.0,100000.0,0.001]
[1733680286682,0.35534331,100010.0,100000.0,0.01725814]
[1733680287621,0.44522062,100010.0,100000.0,0.01725814]
[1733680287838,0.44695142,100010.0,100000.0,0.01725814]
[1733680288059,0.63126739,100010.0,100000.0,0.01725814]
[1733680289519,0.63129562,100010.0,100000.0,0.01725814]
[1733680289755,0.63129562,100010.0,100000.0,0.01726019]
[1733680291056,0.6412317,100010.0,100000.0,0.01726019]
[1733680293950,0.82100891,100010.0,100000.0,0.01726019]
[1733680294166,0.6412317,100010.0,100000.0,0.01726019]
[1733680297909,0.64126547,100010.0,100000.0,0.01726019]
[1733680299423,0.64126547,100010.0,100000.0,0.01812559]
[1733680300826,0.8210697,100010.0,100000.0,0.01812559]
[1733680302363,0.64126547,100010.0,100000.0,0.01812559]
[1733680303039,0.50622939,100010.0,100000.0,0.01812559]
[1733680303277,0.50622939,100010.0,100000.0,0.09332559]
[1733680303278,0.28147411,100010.0,100000.0,0.09332559]
[1733680304683,0.0027308,100010.0,100000.0,0.09332559]
[1733680304908,0.0027308,100010.0,100000.0,0.19054938]
[1733680305384,0.0027308,100010.0,100000.0,0.32516782]
[1733680305647,0.0027308,100010.0,100000.0,0.70406495]
[1733680305861,0.0027308,100010.0,100000.0,0.69658678]
[1733680306113,0.0027308,100010.0,100000.0,0.77222749]
[1733680306338,0.0027308,100010.0,100000.0,0.93545855]
[1733680306571,0.0027308,100010.0,100000.0,0.94293508]
[1733680307223,0.0027308,100010.0,100000.0,0.9581908]
[1733680307466,0.0027308,100010.0,100000.0,0.9591908]
[1733680307967,0.0027308,100010.0,100000.0,0.77969955]
[1733680308182,0.0027308,100010.0,100000.0,0.9591908]
[1733680308392,0.0017308,100010.0,100000.0,0.95918662]
[1733680308839,0.0027308,100010.0,100000.0,0.95883417]
[1733680309090,0.0017308,100010.0,100000.0,0.95783417]
[1733680309344,0.0017308,100010.0,100000.0,0.96283417]
[1733680309575,0.0017308,100010.0,100000.0,0.95983417]
[1733680309825,0.0017308,100010.0,100000.0,0.89540657]
[1733680310089,0.0017308,100010.0,100000.0,0.88519346]
[1733680310328,0.0017308,100010.0,100000.0,0.70583476]
[1733680310771,0.0017308,100010.0,100000.0,0.70883476]
[1733680312185,0.0017308,100010.0,100000.0,0.37779184]
[1733680312650,0.0017308,100010.0,100000.0,0.24327282]
[1733680313121,0.0017308,100010.0,100000.0,0.70881026]
[1733680313338,0.0017308,100010.0,100000.0,0.37779184]
[1733680313798,0.0017308,100010.0,100000.0,0.37775225]
[1733680314024,0.0017308,100010.0,100000.0,0.45339296]
[1733680314271,0.0017308,100010.0,100000.0,0.7843508]
[1733680314513,0.0017308,100010.0,100000.0,0.76809508]
[1733680314740,0.0017308,100010.0,100000.0,0.78435069]
[1733680314963,0.0017308,100010.0,100000.0,0.70870998]
[1733680315224,0.0017308,100010.0,100000.0,0.78435069]
[1733680315442,0.0017308,100010.0,100000.0,0.96367771]
[1733680315866,0.0017308,100010.0,100000.0,0.96067771]
[1733680316424,0.0017308,100010.0,100000.0,0.96367771]
[1733680316675,0.0017308,100010.0,100000.0,0.96067771]
[1733680317117,0.0017308,100010.0,100000.0,0.96367771]
[1733680318194,0.0017308,100010.0,100000.0,0.78435069]
[1733680318450,0.0017308,100010.0,100000.0,0.78404359]
[1733680318902,0.0017308,100010.0,100000.0,0.79387965]
[1733680319377,0.0017308,100010.0,100000.0,0.97309887]
[1733680319840,0.0017308,100010.0,100000.0,0.79387965]
[1733680320532,0.0017308,100010.0,100000.0,0.7938708]
[1733680321728,0.0017308,100010.0,100000.0,1.19876024]
[1733680321946,0.4906954,100040.0,100010.0,0.33062271]
[1733680322172,0.59072491,100040.0,100020.0,0.179955]
[1733680322412,0.59072491,100040.0,100020.0,0.38362811]
[1733680323413,0.59372491,100040.0,100020.0,0.38369116]
[1733680323637,0.59372491,100040.0,100020.0,0.56364616]
[1733680324338,0.59372491,100040.0,100020.0,0.38369116]
[1733680324534,0.59372491,100040.0,100020.0,0.55618166]
[1733680324781,0.59372491,100040.0,100020.0,0.56363879]
[1733680325193,0.60272491,100040.0,100020.0,0.56363879]
[1733680325416,0.60272491,100040.0,100020.0,0.38368379]
[1733680326543,0.60272491,100040.0,100020.0,0.56363779]
[1733680326813,0.60272491,100040.0,100020.0,0.54738218]
[1733680327045,0.60272491,100040.0,100020.0,0.38368089]
[1733680327978,0.78266691,100040.0,100020.0,0.20372689]
[1733680328192,0.60272491,100040.0,100020.0,0.38368189]
[1733680328413,0.78266291,100040.0,100020.0,0.38368189]
[1733680328629,0.78266291,100040.0,100020.0,0.20372689]
[1733680329518,0.78266291,100040.0,100020.0,0.20373589]
[1733680329519,0.179946,100030.0,100020.0,0.20373589]
[1733680330204,0.179946,100030.0,100020.0,0.19627876]
[1733680330655,0.179946,100030.0,100020.0,6.305e-05]
[1733680330888,0.27997551,100030.0,100020.0,0.01631661]
[1733680331148,0.28497551,100030.0,100020.0,0.01631661]
[1733680331850,0.28597551,100030.0,100020.0,0.01631661]
[1733680332113,0.28097551,100030.0,100020.0,0.01631661]
[1733680332361,0.28597551,100030.0,100020.0,0.01631661]
[1733680332572,0.28097551,100030.0,100020.0,0.01631661]
[1733680332832,0.28597551,100030.0,100020.0,0.01631661]
[1733680333014,0.28497551,100030.0,100020.0,0.01631661]
[1733680333654,0.005,100030.0,100020.0,0.1962815]
[1733680333869,0.69077977,100040.0,100020.0,0.1962815]
[1733680334076,0.0017308,100030.0,100020.0,0.3762375]
[1733680334295,0.0047308,100030.0,100020.0,0.3762375]
[1733680334726,0.0037308,100030.0,100020.0,0.3762375]
[1733680334944,0.0017308,100030.0,100020.0,0.3762375]
[1733680335370,0.0027308,100030.0,100020.0,0.3762375]
[1733680336017,0.0027308,100030.0,100020.0,0.3772375]
[1733680336673,0.1826768,100030.0,100020.0,0.1972735]
[1733680336925,0.1826768,100030.0,100020.0,0.0173175]
[1733680337820,0.36050631,100030.0,100020.0,0.0173175]
[1733680338276,0.38035261,100030.0,100020.0,0.0173175]
[1733680338754,0.42715261,100030.0,100020.0,0.0173175]
[1733680340572,0.42615261,100030.0,100020.0,0.0173175]
[1733680340801,0.42615261,100030.0,100020.0,0.0163175]
[1733680341021,0.43015261,100030.0,100020.0,0.0163175]
[1733680342359,0.43115261,100030.0,100020.0,0.0163175]
[1733680343450,0.20440661,100030.0,100020.0,0.0163175]
[1733680343699,0.0067308,100030.0,100020.0,0.1962815]
[1733680345284,0.0067308,100030.0,100020.0,0.19628033]
[1733680347955,0.0067308,100030.0,100020.0,0.20611057]
[1733680348172,0.0067308,100030.0,100020.0,0.19628033]
[1733680348398,0.0067308,100030.0,100020.0,0.01631633]
[1733680348399,0.1866768,100030.0,100020.0,0.01631633]
[1733680348633,0.28670631,100030.0,100020.0,0.01631633]
[1733680349063,0.41340631,100030.0,100020.0,0.01631633]
[1733680350187,0.41340631,100030.0,100020.0,0.01631782]
[1733680351675,0.36830631,100030.0,100020.0,0.01631782]
[1733680351884,0.28670631,100030.0,100020.0,0.01631782]
[1733680352768,0.28670631,100030.0,100020.0,0.19628182]
[1733680354874,0.0067308,100030.0,100020.0,0.19628182]
[1733680359265,0.0067308,100030.0,100020.0,0.28590828]
[1733680359681,0.0067308,100030.0,100020.0,0.19628182]
[1733680360124,0.1866768,100030.0,100020.0,0.19628182]
[1733680360327,0.1866768,100030.0,100020.0,0.28590828]
[1733680360772,0.1866768,100030.0,100020.0,0.10594428]
[1733680360988,0.1866768,100030.0,100020.0,0.28590828]
[1733680361222,0.1866768,100030.0,100020.0,0.19628182]
[1733680361444,0.1866768,100030.0,100020.0,0.01631782]
[1733680361682,0.28670631,100030.0,100020.0,0.01631782]
[1733680362100,0.36750631,100030.0,100020.0,0.01631782]
[1733680366217,0.36750631,100030.0,100020.0,6.305e-05]
[1733680366428,0.36750631,100030.0,100020.0,0.01631779]
[1733680366876,0.36750631,100030.0,100020.0,6.305e-05]
[1733680367086,0.36750631,100030.0,100020.0,0.01631795]
[1733680367514,0.36750631,100030.0,100020.0,6.305e-05]
[1733680369971,0.36750631,100030.0,100020.0,0.01006598]
[1733680370175,0.36750631,100030.0,100020.0,0.01631781]
[1733680371512,0.36750631,100030.0,100020.0,6.305e-05]
[1733680371700,0.36750631,100030.0,100020.0,0.01631804]
[1733680374488,0.45738543,100030.0,100020.0,0.01631804]
[1733680380772,0.45738543,100030.0,100020.0,0.01631899]
[1733680381665,0.59220411,100030.0,100020.0,0.01631899]
[1733680382136,0.60240112,100030.0,100020.0,0.01631899]
[1733680382352,0.82735936,100030.0,100020.0,0.01631899]
[1733680382836,0.83256962,100030.0,100020.0,0.01631899]
[1733680383081,1.05726742,100030.0,100020.0,6.305e-05]
[1733680383326,1.05726742,100030.0,100020.0,0.0100674]
[1733680383550,1.05735806,100030.0,100020.0,0.01632012]
[1733680383778,0.83262789,100030.0,100020.0,0.01632012]
[1733680386887,1.18035806,100030.0,100020.0,0.01632012]
[1733680387112,1.09046599,100030.0,100020.0,0.01632012]
[1733680387593,1.10678599,100030.0,100020.0,0.01632012]
[1733680387820,1.24326357,100030.0,100020.0,0.01632012]
[1733680388048,1.19831754,100030.0,100020.0,0.01632012]
[1733680388555,0.92864133,100030.0,100020.0,0.01632012]
[1733680388775,0.576464,100020.0,100010.0,0.0008654]
[1733680388995,1.40520067,100020.0,100010.0,0.0008654]
[1733680389221,1.21535898,100020.0,100010.0,0.0008654]
[1733680389445,0.90091307,100020.0,100010.0,0.0008654]
[1733680390552,0.576482,100010.0,100000.0,0.0008654]
[1733680390764,1.0007612,100010.0,100000.0,0.0008654]
[1733680392354,0.86610059,100010.0,100000.0,0.0008654]
[1733680392574,0.87010059,100010.0,100000.0,0.0008654]
[1733680393044,1.18406852,100010.0,100000.0,0.0008654]
[1733680393262,1.30836945,100010.0,100000.0,0.0008654]
[1733680393475,1.31136945,100010.0,100000.0,0.0008654]
[1733680393690,1.30736945,100010.0,100000.0,0.0008654]
[1733680393908,1.31336945,100010.0,100000.0,0.0008654]
[1733680394124,1.30436945,100010.0,100000.0,0.0008654]
[1733680394314,1.30936945,100010.0,100000.0,0.0008654]
[1733680394526,1.31836945,100010.0,100000.0,0.0008654]
[1733680394741,1.30936945,100010.0,100000.0,0.0008654]
[1733680394987,1.31836945,100010.0,100000.0,0.0008654]
[1733680395457,1.08006852,100010.0,100000.0,0.0008654]
[1733680395681,1.31977087,100010.0,100000.0,0.0008654]
[1733680395901,1.31977777,100010.0,100000.0,0.0008654]
[1733680396361,1.08868815,100010.0,100000.0,0.0008654]
[1733680396547,1.14468815,100010.0,100000.0,0.0008654]
[1733680397407,1.44467815,100010.0,100000.0,0.0008654]
[1733680397834,1.26540646,100010.0,100000.0,0.0008654]
[1733680399377,1.27528557,100010.0,100000.0,0.0008654]
[1733680400097,1.45455726,100010.0,100000.0,0.0008654]
[1733680400300,1.27528557,100010.0,100000.0,0.0008654]
[1733680400518,1.45455726,100010.0,100000.0,0.0008654]
[1733680400733,0.1,100000.0,99990.0,0.00173]
[1733680400952,0.10002951,99991.0,99990.0,0.00173]
[1733680401172,0.40001951,99991.0,99990.0,0.00173]
[1733680402241,0.40008247,99991.0,99990.0,0.00173]
[1733680402458,0.58009847,99991.0,99990.0,0.00173]
[1733680403118,0.58704799,99991.0,99990.0,0.00173]
[1733680403740,0.59304799,99991.0,99990.0,0.00173]
[1733680403954,0.58504799,99991.0,99990.0,0.00173]
[1733680404163,0.59404799,99991.0,99990.0,0.00173]
[1733680404591,0.58504799,99991.0,99990.0,0.00173]
[1733680404813,0.59404799,99991.0,99990.0,0.00173]
[1733680405023,0.59804799,99991.0,99990.0,0.00173]
[1733680405466,0.59404799,99991.0,99990.0,0.00173]
[1733680405886,0.59804799,99991.0,99990.0,0.00173]
[1733680407437,0.59804799,99991.0,99990.0,0.00798526]
[1733680408120,0.61404197,99991.0,99990.0,0.00798526]
[1733680408330,0.60904197,99991.0,99990.0,0.00798526]
[1733680408987,0.60504197,99991.0,99990.0,0.00798526]
[1733680409193,0.60804197,99991.0,99990.0,0.00798526]
[1733680409620,0.61704197,99991.0,99990.0,0.00798526]
[1733680415315,0.76704197,99991.0,99990.0,0.00798526]
[1733680420157,0.76704197,99991.0,99990.0,0.00798492]
[1733680431565,0.76704197,99991.0,99990.0,0.00173]
[1733680431795,0.76704197,99991.0,99990.0,0.0079851]
[1733680432270,0.76704197,99991.0,99990.0,0.00173]
[1733680432760,0.76704197,99991.0,99990.0,0.00798504]
[1733680433001,0.76704197,99991.0,99990.0,0.00798506]
[1733680437759,0.76704197,99991.0,99990.0,0.00798493]
[1733680440863,0.43702597,99991.0,99990.0,0.00173]
[1733680441108,0.43702597,99991.0,99990.0,0.00798481]
[1733680441109,0.33204694,99991.0,99990.0,0.00798481]
[1733680441372,0.31205296,99991.0,99990.0,0.00798481]
[1733680442085,0.30005296,99991.0,99990.0,0.00798481]
[1733680442322,0.31205296,99991.0,99990.0,0.00798481]
[1733680442825,0.30305296,99991.0,99990.0,0.00798481]
[1733680449171,0.40308247,99991.0,99990.0,0.00798481]
[1733680450656,0.55308247,99991.0,99990.0,0.00798481]
[1733680460776,0.55829692,99991.0,99990.0,0.00798481]
[1733680461433,0.55829692,99991.0,99990.0,0.00173]
[1733680461641,0.55829692,99991.0,99990.0,0.0079849]
[1733680461873,0.64829617,99991.0,99990.0,0.0079849]
[1733680462078,0.55829692,99991.0,99990.0,0.0079849]
[1733680463779,0.73731226,99991.0,99990.0,0.0079849]
[1733680464014,0.87231516,99991.0,99990.0,0.0079849]
[1733680464167,0.73731226,99991.0,99990.0,0.0079849]
[1733680464379,0.8723069,99991.0,99990.0,0.0079849]
[1733680464877,0.87230356,99991.0,99990.0,0.0079849]
[1733680465323,0.87230355,99991.0,99990.0,0.0079849]
[1733680465532,0.73731226,99991.0,99990.0,0.0079849]
[1733680465989,0.82730054,99991.0,99990.0,0.0079849]
[1733680466189,0.73731226,99991.0,99990.0,0.0079849]
[1733680466602,0.82729896,99991.0,99990.0,0.0079849]
[1733680466816,0.82729896,99991.0,99990.0,0.00798512]
[1733680467042,0.73731226,99991.0,99990.0,0.00798512]
[1733680468091,0.87229232,99991.0,99990.0,0.00798512]
[1733680468508,0.73731226,99991.0,99990.0,0.00798512]
[1733680470212,0.73731226,99991.0,99990.0,0.00173]
[1733680470414,0.73731226,99991.0,99990.0,0.00798521]
[1733680470949,0.73731226,99991.0,99990.0,0.01799355]
[1733680471847,0.73731226,99991.0,99990.0,0.00173]
[1733680476958,0.74717661,99991.0,99990.0,0.00173]
[1733680477450,0.64736127,99991.0,99990.0,0.00173]
[1733680477667,0.63749692,99991.0,99990.0,0.00173]
[1733680478604,0.79545207,99991.0,99990.0,0.00173]
[1733680478827,0.66049692,99991.0,99990.0,0.00173]
[1733680479298,0.69102952,99991.0,99990.0,0.00173]
[1733680479737,0.93488247,99991.0,99990.0,0.00173]
[1733680479954,0.70991571,99991.0,99990.0,0.00173]
[1733680480204,0.67938311,99991.0,99990.0,0.00173]
[1733680480427,0.7099185,99991.0,99990.0,0.00173]
[1733680481581,0.8592747,99991.0,99990.0,0.00173]
[1733680482459,0.67938311,99991.0,99990.0,0.00173]
[1733680483119,0.67938311,99991.0,99980.0,0.0017304]
[1733680483120,0.05,99988.0,99980.0,0.0017304]
[1733680483376,0.05,99988.0,99971.0,0.0009854]
[1733680483377,0.180037,99979.0,99971.0,0.0009854]
[1733680483589,0.18005,99972.0,99971.0,0.0009854]
[1733680483807,0.28007951,99972.0,99970.0,0.0017304]
[1733680484003,0.10002951,99971.0,99970.0,0.0017304]
[1733680485331,0.10302951,99971.0,99970.0,0.0017304]
[1733680487522,0.10823679,99971.0,99970.0,0.0017304]
[1733680487921,0.40822679,99971.0,99970.0,0.0017304]
[1733680489062,0.42855286,99971.0,99970.0,0.0017304]
[1733680489939,0.32331607,99971.0,99970.0,0.0017304]
[1733680490406,0.32331607,99971.0,99970.0,0.0770304]
[1733680490863,0.30299,99971.0,99970.0,0.1268304]
[1733680491082,0.29999,99971.0,99970.0,0.13430044]
[1733680491572,0.30099,99971.0,99970.0,0.05900044]
[1733680491792,0.29999,99971.0,99970.0,0.0515304]